[Event "32nd NATO Chess Championship"]
[Site "Tartu, Estonia"]
[Date "2022.06.29"]
[Round "4.8"]
[White "Nikomanis, Andreas"]
[Black "Graczyk, Damian"]
[Result "1/2-1/2"]
[TimeControl "90 min + 30 sec increment from move one"]
[WhiteFideId "4213831"]
[BlackFideId "1170716"]
[WhiteElo "2068"]
[BlackElo "2151"]

1. e4 {[%clk 01:30:56]} {[%emt 00:00:04]} d5 {[%clk 01:30:50]} {[%emt
00:00:10]} 2. exd5 {[%clk 01:31:18]} {[%emt 00:00:08]} Qxd5 {[%clk 01:31:14]}
{[%emt 00:00:05]} 3. Nc3 {[%clk 01:31:41]} {[%emt 00:00:06]} Qd8 {[%clk
01:31:41]} {[%emt 00:00:04]} 4. d4 {[%clk 01:31:50]} {[%emt 00:00:21]} Nf6
{[%clk 01:32:08]} {[%emt 00:00:03]} 5. Nf3 {[%clk 01:31:26]} {[%emt 00:00:54]}
Bg4 {[%clk 01:32:08]} {[%emt 00:00:30]} 6. h3 {[%clk 01:31:49]} {[%emt
00:00:06]} Bxf3 {[%clk 01:32:30]} {[%emt 00:00:09]} 7. Qxf3 {[%clk 01:32:14]}
{[%emt 00:00:05]} c6 {[%clk 01:32:58]} {[%emt 00:00:02]} 8. Be3 {[%clk
01:32:08]} {[%emt 00:00:35]} e6 {[%clk 01:33:20]} {[%emt 00:00:10]} 9. Bd3
{[%clk 01:31:47]} {[%emt 00:00:50]} Nd5 {[%clk 01:33:12]} {[%emt 00:00:38]} 10.
O-O {[%clk 01:27:02]} {[%emt 00:05:15]} Nxc3 {[%clk 01:32:44]} {[%emt
00:00:59]} 11. bxc3 {[%clk 01:27:25]} {[%emt 00:00:06]} Qd5 {[%clk 01:33:12]}
{[%emt 00:00:02]} 12. Qg3 {[%clk 01:24:34]} {[%emt 00:03:20]} Nd7 {[%clk
01:31:18]} {[%emt 00:02:25]} 13. c4 {[%clk 01:24:00]} {[%emt 00:01:03]} Qd6
{[%clk 01:29:11]} {[%emt 00:02:38]} 14. Qf3 {[%clk 01:22:13]} {[%emt 00:02:16]}
Nf6 {[%clk 01:11:53]} {[%emt 00:17:49]} 15. Rab1 {[%clk 01:17:57]} {[%emt
00:04:45]} Qd7 {[%clk 01:10:59]} {[%emt 00:01:25]} 16. d5 {[%clk 01:11:21]}
{[%emt 00:07:06]} exd5 {[%clk 00:56:53]} {[%emt 00:14:35]} 17. cxd5 {[%clk
01:09:08]} {[%emt 00:02:44]} Nxd5 {[%clk 00:57:17]} {[%emt 00:00:06]} 18. Bd4
{[%clk 01:05:53]} {[%emt 00:03:44]} f6 {[%clk 00:38:54]} {[%emt 00:18:54]} 19.
Rfe1+ {[%clk 01:02:52]} {[%emt 00:03:31]} Ne7 {[%clk 00:36:35]} {[%emt
00:02:49]} 20. Bc5 {[%clk 00:49:17]} {[%emt 00:14:04]} b6 {[%clk 00:33:53]}
{[%emt 00:03:12]} 21. Bxe7 {[%clk 00:43:21]} {[%emt 00:06:26]} Bxe7 {[%clk
00:34:17]} {[%emt 00:00:08]} 22. Rbd1 {[%clk 00:41:28]} {[%emt 00:02:22]} Qc7
{[%clk 00:31:33]} {[%emt 00:03:14]} 23. Qh5+ {[%clk 00:37:37]} {[%emt
00:04:20]} Kf8 {[%clk 00:29:22]} {[%emt 00:02:42]} 24. Re4 {[%clk 00:37:18]}
{[%emt 00:00:48]} Rd8 {[%clk 00:23:48]} {[%emt 00:06:05]} 25. Rde1 {[%clk
00:36:41]} {[%emt 00:01:06]} Rd7 {[%clk 00:24:11]} {[%emt 00:00:08]} 26. Bc4
{[%clk 00:35:47]} {[%emt 00:01:24]} g6 {[%clk 00:24:39]} {[%emt 00:00:02]} 27.
Qe2 {[%clk 00:26:42]} {[%emt 00:09:34]} Bc5 {[%clk 00:21:53]} {[%emt 00:03:17]}
28. Qf3 {[%clk 00:20:50]} {[%emt 00:06:22]} Kg7 {[%clk 00:20:30]} {[%emt
00:01:53]} 29. Re6 {[%clk 00:20:54]} {[%emt 00:00:26]} Rf8 {[%clk 00:18:39]}
{[%emt 00:02:20]} 30. Rxc6 {[%clk 00:19:38]} {[%emt 00:01:46]} Qd8 {[%clk
00:17:16]} {[%emt 00:01:54]} 31. Bd3 {[%clk 00:18:25]} {[%emt 00:01:43]} Rd6
{[%clk 00:14:28]} {[%emt 00:03:18]} 32. h4 {[%clk 00:18:16]} {[%emt 00:00:38]}
Rxc6 {[%clk 00:14:11]} {[%emt 00:00:47]} 33. Qxc6 {[%clk 00:18:42]} {[%emt
00:00:05]} Qd4 {[%clk 00:14:22]} {[%emt 00:00:19]} 34. Re2 {[%clk 00:16:43]}
{[%emt 00:02:28]} Qxh4 {[%clk 00:12:44]} {[%emt 00:02:08]} 35. a4 {[%clk
00:16:32]} {[%emt 00:00:41]} a5 {[%clk 00:12:05]} {[%emt 00:01:09]} 36. Bb5
{[%clk 00:14:42]} {[%emt 00:02:20]} Qf4 {[%clk 00:08:32]} {[%emt 00:04:02]} 37.
Qd5 {[%clk 00:12:47]} {[%emt 00:02:26]} h5 {[%clk 00:06:29]} {[%emt 00:02:33]}
38. Bc4 {[%clk 00:12:35]} {[%emt 00:00:42]} h4 {[%clk 00:03:55]} {[%emt
00:03:05]} 39. Qd7+ {[%clk 00:12:46]} {[%emt 00:00:19]} Kh6 {[%clk 00:04:04]}
{[%emt 00:00:20]} 40. Qd2 {[%clk 00:09:50]} {[%emt 00:03:26]} Qxd2 {[%clk
00:04:20]} {[%emt 00:00:15]} 41. Rxd2 {[%clk 00:10:16]} {[%emt 00:00:04]} Re8
{[%clk 00:04:40]} {[%emt 00:00:09]} 42. Kf1 {[%clk 00:09:58]} {[%emt 00:00:48]}
Kg5 {[%clk 00:03:40]} {[%emt 00:01:29]} 43. Rd5+ {[%clk 00:10:06]} {[%emt
00:00:23]} f5 {[%clk 00:03:52]} {[%emt 00:00:18]} 44. Bd3 {[%clk 00:07:52]}
{[%emt 00:02:44]} Bb4 {[%clk 00:03:31]} {[%emt 00:00:51]} 45. Be2 {[%clk
00:07:57]} {[%emt 00:00:25]} Re4 {[%clk 00:03:24]} {[%emt 00:00:37]} 46. Rd1
{[%clk 00:08:22]} {[%emt 00:00:05]} Bc3 {[%clk 00:02:59]} {[%emt 00:00:55]} 47.
Bb5 {[%clk 00:08:37]} {[%emt 00:00:15]} Rb4 {[%clk 00:02:32]} {[%emt 00:00:57]}
48. Ke2 {[%clk 00:08:15]} {[%emt 00:00:52]} Re4+ {[%clk 00:02:05]} {[%emt
00:00:57]} 49. Kd3 {[%clk 00:08:22]} {[%emt 00:00:23]} Rd4+ {[%clk 00:02:20]}
{[%emt 00:00:14]} 50. Ke2 {[%clk 00:08:50]} {[%emt 00:00:03]} Rxd1 {[%clk
00:02:45]} {[%emt 00:00:06]} 51. Kxd1 {[%clk 00:09:14]} {[%emt 00:00:05]} Kf4
{[%clk 00:03:04]} {[%emt 00:00:11]} 52. Ke2 {[%clk 00:09:31]} {[%emt 00:00:13]}
Bd4 {[%clk 00:03:22]} {[%emt 00:00:10]} 53. Bc6 {[%clk 00:08:56]} {[%emt
00:01:07]} g5 {[%clk 00:03:38]} {[%emt 00:00:14]} 54. Bb7 {[%clk 00:08:06]}
{[%emt 00:01:20]} g4 {[%clk 00:03:50]} {[%emt 00:00:18]} 55. Bc6 {[%clk
00:08:21]} {[%emt 00:00:16]} Bc5 {[%clk 00:04:18]} {[%emt 00:00:02]} 56. Bb7
{[%clk 00:06:51]} {[%emt 00:01:59]} g3 {[%clk 00:02:26]} {[%emt 00:02:22]} 57.
fxg3+ {[%clk 00:06:58]} {[%emt 00:00:24]} Kxg3 {[%clk 00:02:54]} {[%emt
00:00:02]} 58. c4 {[%clk 00:07:05]} {[%emt 00:00:23]} f4 {[%clk 00:03:01]}
{[%emt 00:00:22]} 59. Bf3 {[%clk 00:06:54]} {[%emt 00:00:42]} h3 {[%clk
00:03:14]} {[%emt 00:00:16]} 60. gxh3 {[%clk 00:07:20]} {[%emt 00:00:04]} Kxh3
{[%clk 00:03:41]} {[%emt 00:00:03]} 61. Bd5 {[%clk 00:07:23]} {[%emt 00:00:27]}
Kg3 {[%clk 00:03:53]} {[%emt 00:00:18]} 62. Bf3 {[%clk 00:07:42]} {[%emt
00:00:11]} Kh4 {[%clk 00:04:05]} {[%emt 00:00:19]} 63. Bd5 {[%clk 00:08:02]}
{[%emt 00:00:09]} Kg5 {[%clk 00:04:33]} {[%emt 00:00:02]} 64. Kf3 {[%clk
00:08:19]} {[%emt 00:00:13]} Kf5 {[%clk 00:05:02]} {[%emt 00:00:02]} 65. Bc6
{[%clk 00:08:37]} {[%emt 00:00:12]} Ke5 {[%clk 00:05:27]} {[%emt 00:00:04]} 66.
Be8 {[%clk 00:08:00]} {[%emt 00:01:08]} Be3 {[%clk 00:05:55]} {[%emt 00:00:02]}
67. Bd7 {[%clk 00:08:09]} {[%emt 00:00:21]} Kd4 {[%clk 00:06:24]} {[%emt
00:00:01]} 68. Bb5 {[%clk 00:08:33]} {[%emt 00:00:06]} Kc5 {[%clk 00:06:42]}
{[%emt 00:00:12]} 69. Ke4 {[%clk 00:08:54]} {[%emt 00:00:08]} Kb4 {[%clk
00:07:01]} {[%emt 00:00:11]} 70. Kf3 {[%clk 00:09:18]} {[%emt 00:00:05]} Bc1
{[%clk 00:06:59]} {[%emt 00:00:33]} 71. Ke4 {[%clk 00:09:40]} {[%emt 00:00:07]}
Kc5 {[%clk 00:07:27]} {[%emt 00:00:02]} 72. Kf3 {[%clk 00:10:03]} {[%emt
00:00:08]} Kd4 {[%clk 00:07:52]} {[%emt 00:00:05]} 73. Ba6 {[%clk 00:10:20]}
{[%emt 00:00:12]} Kc5 {[%clk 00:08:07]} {[%emt 00:00:15]} 74. Bb5 {[%clk
00:10:46]} {[%emt 00:00:04]} 1/2-1/2

[Event "32nd NATO Chess Championship"]
[Site "Tartu, Estonia"]
[Date "2022.06.29"]
[Round "4.9"]
[White "Aagaard, Gert"]
[Black "Nill, Oliver"]
[Result "0-1"]
[TimeControl "90 min + 30 sec increment from move one"]
[WhiteFideId "1427024"]
[BlackFideId "4652630"]
[WhiteElo "1979"]
[BlackElo "2166"]

1. d4 {[%clk 01:30:56]} {[%emt 00:00:03]} g6 {[%clk 01:30:52]} {[%emt
00:00:10]} 2. Nf3 {[%clk 01:29:36]} {[%emt 00:01:48]} Bg7 {[%clk 01:31:14]}
{[%emt 00:00:08]} 3. e3 {[%clk 01:29:15]} {[%emt 00:00:53]} Nf6 {[%clk
01:30:34]} {[%emt 00:01:09]} 4. Be2 {[%clk 01:29:06]} {[%emt 00:00:38]} O-O
{[%clk 01:30:48]} {[%emt 00:00:17]} 5. c4 {[%clk 01:29:24]} {[%emt 00:00:12]}
d6 {[%clk 01:30:33]} {[%emt 00:00:45]} 6. Nc3 {[%clk 01:29:11]} {[%emt
00:00:42]} Nbd7 {[%clk 01:30:32]} {[%emt 00:00:31]} 7. O-O {[%clk 01:28:01]}
{[%emt 00:01:39]} e5 {[%clk 01:29:35]} {[%emt 00:01:29]} 8. b3 {[%clk
01:26:17]} {[%emt 00:02:14]} Re8 {[%clk 01:28:21]} {[%emt 00:01:44]} 9. Qc2
{[%clk 01:25:17]} {[%emt 00:01:30]} e4 {[%clk 01:19:56]} {[%emt 00:08:56]} 10.
Nd2 {[%clk 01:23:12]} {[%emt 00:02:33]} Qe7 {[%clk 01:19:06]} {[%emt 00:01:20]}
11. Bb2 {[%clk 01:19:42]} {[%emt 00:04:01]} Nf8 {[%clk 01:13:37]} {[%emt
00:05:59]} 12. Rac1 {[%clk 01:19:56]} {[%emt 00:00:16]} Bf5 {[%clk 01:11:27]}
{[%emt 00:02:40]} 13. Rfd1 {[%clk 01:17:34]} {[%emt 00:02:52]} h5 {[%clk
01:07:41]} {[%emt 00:04:16]} 14. c5 {[%clk 01:12:02]} {[%emt 00:06:01]} d5
{[%clk 01:00:41]} {[%emt 00:07:31]} 15. c6 {[%clk 01:11:38]} {[%emt 00:00:55]}
b6 {[%clk 00:58:49]} {[%emt 00:02:21]} 16. Ba6 {[%clk 01:10:13]} {[%emt
00:01:55]} Ne6 {[%clk 00:43:44]} {[%emt 00:15:34]} 17. Nb5 {[%clk 01:09:04]}
{[%emt 00:01:39]} Nh7 {[%clk 00:38:42]} {[%emt 00:05:32]} 18. Bb7 {[%clk
01:05:00]} {[%emt 00:04:35]} Rad8 {[%clk 00:38:19]} {[%emt 00:00:53]} 19. Nxa7
{[%clk 01:04:53]} {[%emt 00:00:37]} Qg5 {[%clk 00:36:06]} {[%emt 00:02:42]} 20.
Kh1 {[%clk 01:00:11]} {[%emt 00:05:12]} Nf6 {[%clk 00:34:07]} {[%emt 00:02:30]}
21. Nf1 {[%clk 00:53:00]} {[%emt 00:07:41]} Ng4 {[%clk 00:26:21]} {[%emt
00:08:16]} 22. Nb5 {[%clk 00:52:25]} {[%emt 00:01:04]} Qh4 {[%clk 00:23:12]}
{[%emt 00:03:39]} 23. Kg1 {[%clk 00:52:44]} {[%emt 00:00:12]} Ng5 {[%clk
00:21:50]} {[%emt 00:01:51]} 24. Qe2 {[%clk 00:42:09]} {[%emt 00:11:05]} Nh6
{[%clk 00:19:37]} {[%emt 00:02:44]} 25. f3 {[%clk 00:30:44]} {[%emt 00:11:51]}
exf3 {[%clk 00:18:46]} {[%emt 00:01:25]} 26. gxf3 {[%clk 00:31:05]} {[%emt
00:00:08]} Nh3+ {[%clk 00:16:26]} {[%emt 00:02:50]} 27. Kh1 {[%clk 00:26:42]}
{[%emt 00:04:53]} Ng4 {[%clk 00:13:22]} {[%emt 00:03:35]} 28. fxg4 {[%clk
00:22:54]} {[%emt 00:04:18]} Be4+ {[%clk 00:13:19]} {[%emt 00:00:33]} 0-1

[Event "32nd NATO Chess Championship"]
[Site "Tartu, Estonia"]
[Date "2022.06.29"]
[Round "4.10"]
[White "Pavlidou, Ekaterini"]
[Black "Stankowski, Aleksander"]
[Result "1-0"]
[TimeControl "90 min + 30 sec increment from move one"]
[WhiteTitle "WIM"]
[WhiteFideId "4213262"]
[BlackFideId "1137603"]
[WhiteElo "2146"]
[BlackElo "1971"]

1. d4 {[%clk 01:30:57]} Nf6 {[%clk 01:30:47]} {[%emt 00:18:43]} 2. c4 {[%clk
01:30:06]} {[%emt 00:01:05]} g6 {[%clk 01:31:08]} {[%emt 00:00:09]} 3. Nc3
{[%clk 01:30:24]} {[%emt 00:00:10]} Bg7 {[%clk 01:31:34]} {[%emt 00:00:05]} 4.
e4 {[%clk 01:30:36]} {[%emt 00:00:17]} d6 {[%clk 01:32:00]} {[%emt 00:00:06]} 5.
Be2 {[%clk 01:29:33]} {[%emt 00:01:33]} O-O {[%clk 01:32:23]} {[%emt 00:00:07]}
6. Be3 {[%clk 01:29:54]} {[%emt 00:00:09]} e5 {[%clk 01:32:35]} {[%emt
00:00:17]} 7. d5 {[%clk 01:30:14]} {[%emt 00:00:10]} Ne8 {[%clk 01:25:27]}
{[%emt 00:07:38]} 8. g4 {[%clk 01:29:35]} {[%emt 00:01:09]} f5 {[%clk
01:25:09]} {[%emt 00:00:50]} 9. gxf5 {[%clk 01:29:53]} {[%emt 00:00:11]} gxf5
{[%clk 01:25:20]} {[%emt 00:00:19]} 10. exf5 {[%clk 01:30:00]} {[%emt
00:00:22]} Bxf5 {[%clk 01:25:37]} {[%emt 00:00:14]} 11. Nf3 {[%clk 01:28:42]}
{[%emt 00:01:47]} Na6 {[%clk 01:16:27]} {[%emt 00:09:40]} 12. Rg1 {[%clk
01:21:40]} {[%emt 00:07:32]} Nb4 {[%clk 01:01:12]} {[%emt 00:15:46]} 13. Rc1
{[%clk 01:20:14]} {[%emt 00:01:55]} a5 {[%clk 00:59:50]} {[%emt 00:01:53]} 14.
a3 {[%clk 01:14:16]} {[%emt 00:06:27]} Na6 {[%clk 01:00:05]} {[%emt 00:00:15]}
15. Ng5 {[%clk 01:13:29]} {[%emt 00:01:17]} h6 {[%clk 00:32:22]} {[%emt
00:28:14]} 16. Ne6 {[%clk 01:01:27]} {[%emt 00:12:32]} Bxe6 {[%clk 00:32:44]}
{[%emt 00:00:08]} 17. dxe6 {[%clk 01:01:53]} {[%emt 00:00:03]} Qh4 {[%clk
00:32:37]} {[%emt 00:00:38]} 18. Nd5 {[%clk 00:40:01]} {[%emt 00:22:21]} Qxh2
{[%clk 00:28:39]} {[%emt 00:04:27]} 19. Rg4 {[%clk 00:33:47]} {[%emt 00:06:46]}
Rf6 {[%clk 00:13:38]} {[%emt 00:15:31]} 20. Nxf6+ {[%clk 00:29:27]} {[%emt
00:04:49]} Nxf6 {[%clk 00:14:05]} {[%emt 00:00:04]} 21. Qd3 {[%clk 00:27:37]}
{[%emt 00:02:20]} Nxg4 {[%clk 00:13:55]} {[%emt 00:00:39]} 22. Qg6 {[%clk
00:25:13]} {[%emt 00:02:54]} Nf6 {[%clk 00:11:01]} {[%emt 00:03:24]} 23. Kd2
{[%clk 00:10:22]} {[%emt 00:15:21]} Re8 {[%clk 00:10:30]} {[%emt 00:01:02]} 24.
Rg1 {[%clk 00:10:27]} {[%emt 00:00:24]} Re7 {[%clk 00:10:52]} {[%emt 00:00:09]}
25. Qxf6 {[%clk 00:09:10]} {[%emt 00:01:46]} Qxg1 {[%clk 00:10:03]} {[%emt
00:01:19]} 26. Qxe7 {[%clk 00:09:23]} {[%emt 00:00:18]} e4 {[%clk 00:07:27]}
{[%emt 00:03:05]} 27. Qf7+ {[%clk 00:09:14]} {[%emt 00:00:38]} Kh7 {[%clk
00:06:58]} {[%emt 00:01:01]} 28. e7 {[%clk 00:09:30]} {[%emt 00:00:13]} Qb1
{[%clk 00:03:58]} {[%emt 00:03:31]} 29. Qf5+ {[%clk 00:09:50]} {[%emt
00:00:09]} 1-0

[Event "32nd NATO Chess Championship"]
[Site "Tartu, Estonia"]
[Date "2022.06.29"]
[Round "4.12"]
[White "Pazeriene, Diana"]
[Black "Keough, Robert"]
[Result "1/2-1/2"]
[TimeControl "90 min + 30 sec increment from move one"]
[WhiteFideId "12802190"]
[BlackFideId "410667"]
[WhiteElo "1930"]
[BlackElo "2074"]

1. d4 {[%clk 01:30:56]} {[%emt 00:00:04]} Nf6 {[%clk 01:30:46]} {[%emt
00:00:14]} 2. c4 {[%clk 01:31:16]} {[%emt 00:00:10]} g6 {[%clk 01:31:04]}
{[%emt 00:00:13]} 3. Nc3 {[%clk 01:31:09]} {[%emt 00:00:36]} Bg7 {[%clk
01:31:26]} {[%emt 00:00:06]} 4. e4 {[%clk 01:30:07]} {[%emt 00:01:34]} d6
{[%clk 01:31:49]} {[%emt 00:00:07]} 5. Be2 {[%clk 01:26:49]} {[%emt 00:03:48]}
O-O {[%clk 01:32:09]} {[%emt 00:00:10]} 6. Nf3 {[%clk 01:26:27]} {[%emt
00:00:52]} Nbd7 {[%clk 01:32:31]} {[%emt 00:00:08]} 7. O-O {[%clk 01:23:36]}
{[%emt 00:03:22]} e5 {[%clk 01:32:48]} {[%emt 00:00:13]} 8. Re1 {[%clk
01:17:46]} {[%emt 00:06:20]} Re8 {[%clk 01:31:37]} {[%emt 00:01:40]} 9. d5
{[%clk 01:10:14]} {[%emt 00:08:02]} Nc5 {[%clk 01:29:07]} {[%emt 00:03:00]} 10.
Nd2 {[%clk 01:03:56]} {[%emt 00:06:48]} a5 {[%clk 01:29:05]} {[%emt 00:00:32]}
11. b3 {[%clk 00:56:23]} {[%emt 00:08:03]} Bh6 {[%clk 01:10:05]} {[%emt
00:19:30]} 12. Qc2 {[%clk 00:48:04]} {[%emt 00:08:48]} Ng4 {[%clk 01:05:27]}
{[%emt 00:05:08]} 13. Nf1 {[%clk 00:45:07]} {[%emt 00:03:27]} Bxc1 {[%clk
01:03:36]} {[%emt 00:02:22]} 14. Raxc1 {[%clk 00:41:53]} {[%emt 00:03:44]} Qh4
{[%clk 01:01:16]} {[%emt 00:02:49]} 15. Bxg4 {[%clk 00:39:53]} {[%emt
00:02:30]} Bxg4 {[%clk 01:01:11]} {[%emt 00:00:36]} 16. Ne3 {[%clk 00:34:40]}
{[%emt 00:05:43]} Bd7 {[%clk 00:59:27]} {[%emt 00:02:10]} 17. a3 {[%clk
00:33:46]} {[%emt 00:01:27]} a4 {[%clk 00:59:40]} {[%emt 00:00:17]} 18. b4
{[%clk 00:25:01]} {[%emt 00:09:15]} Nb3 {[%clk 00:55:42]} {[%emt 00:04:28]} 19.
Rcd1 {[%clk 00:23:45]} {[%emt 00:01:46]} Rf8 {[%clk 00:55:11]} {[%emt
00:01:01]} 20. f3 {[%clk 00:16:23]} {[%emt 00:07:54]} f5 {[%clk 00:53:25]}
{[%emt 00:02:14]} 21. Qf2 {[%clk 00:14:52]} {[%emt 00:02:01]} Qh6 {[%clk
00:51:29]} {[%emt 00:02:27]} 22. Nc2 {[%clk 00:15:06]} {[%emt 00:00:16]} b6
{[%clk 00:48:12]} {[%emt 00:03:47]} 23. Na1 {[%clk 00:12:09]} {[%emt 00:03:27]}
Nd4 {[%clk 00:47:52]} {[%emt 00:00:50]} 24. Nc2 {[%clk 00:12:26]} {[%emt
00:00:13]} fxe4 {[%clk 00:40:41]} {[%emt 00:07:40]} 25. Nxd4 {[%clk 00:12:36]}
{[%emt 00:00:20]} exd4 {[%clk 00:41:07]} {[%emt 00:00:05]} 26. Nxe4 {[%clk
00:12:59]} {[%emt 00:00:07]} d3 {[%clk 00:37:24]} {[%emt 00:04:13]} 27. Rxd3
{[%clk 00:13:05]} {[%emt 00:00:24]} Bf5 {[%clk 00:37:49]} {[%emt 00:00:04]} 28.
Rde3 {[%clk 00:13:00]} {[%emt 00:00:35]} Qg7 {[%clk 00:35:33]} {[%emt
00:02:46]} 29. Qd2 {[%clk 00:12:55]} {[%emt 00:00:34]} Bd7 {[%clk 00:30:46]}
{[%emt 00:05:18]} 30. Ng5 {[%clk 00:12:57]} {[%emt 00:00:29]} Rae8 {[%clk
00:30:36]} {[%emt 00:00:40]} 31. Ne6 {[%clk 00:12:10]} {[%emt 00:01:17]} Bxe6
{[%clk 00:30:52]} {[%emt 00:00:13]} 32. dxe6 {[%clk 00:12:22]} {[%emt
00:00:18]} Re7 {[%clk 00:30:55]} {[%emt 00:00:27]} 33. Qd5 {[%clk 00:11:09]}
{[%emt 00:01:44]} Rfe8 {[%clk 00:30:43]} {[%emt 00:00:41]} 34. h3 {[%clk
00:11:13]} {[%emt 00:00:25]} Qf6 {[%clk 00:30:53]} {[%emt 00:00:20]} 35. Kh2
{[%clk 00:11:19]} {[%emt 00:00:25]} Kg7 {[%clk 00:30:36]} {[%emt 00:00:48]} 36.
Re4 {[%clk 00:11:27]} {[%emt 00:00:22]} h5 {[%clk 00:29:37]} {[%emt 00:01:28]}
37. f4 {[%clk 00:10:01]} {[%emt 00:01:56]} Qf5 {[%clk 00:22:27]} {[%emt
00:07:41]} 38. R1e3 {[%clk 00:08:42]} {[%emt 00:01:48]} h4 {[%clk 00:21:34]}
{[%emt 00:01:23]} 39. Qd4+ {[%clk 00:07:41]} {[%emt 00:01:29]} Qf6 {[%clk
00:20:25]} {[%emt 00:01:41]} 40. Qd5 {[%clk 00:08:10]} {[%emt 00:00:01]} Qf5
{[%clk 00:19:59]} {[%emt 00:00:57]} 41. Qd4+ {[%clk 00:08:39]} Qf6 {[%clk
00:18:05]} {[%emt 00:02:24]} 42. Qd5 {[%clk 00:09:05]} {[%emt 00:00:04]} Qf5
{[%clk 00:17:21]} {[%emt 00:01:13]} 1/2-1/2